bitfinex/quotes_BTCUSD_20251114
["timestamp","ask_amount","ask_price","bid_price","bid_amount"]
[1763129379558,0.10479654,95611.0,95610.0,0.565005]
[1763129379995,0.10479654,95611.0,95610.0,0.5]
[1763129380197,0.10479654,95611.0,95610.0,0.13195]
[1763129380404,0.10479654,95611.0,95610.0,0.63195]
[1763129380821,0.10479654,95611.0,95610.0,0.000454]
[1763129381444,0.10479654,95611.0,95610.0,0.500454]
[1763129381646,0.10479654,95611.0,95610.0,0.115924]
[1763129381850,0.10479654,95611.0,95610.0,0.126645]
[1763129382271,0.10479654,95632.0,95611.0,0.323]
[1763129382480,0.10479654,95632.0,95622.0,0.37388056]
[1763129382687,0.10479654,95632.0,95623.0,0.20915349]
[1763129382900,0.06049,95623.0,95610.0,0.000454]
[1763129383307,0.10479654,95611.0,95610.0,0.000454]
[1763129383310,0.10479654,95617.0,95611.0,0.627044]
[1763129383540,0.10479654,95632.0,95610.0,0.74821512]
[1763129383541,0.10479654,95632.0,95629.0,0.20914157]
[1763129383763,0.10479654,95630.0,95620.0,0.37388056]
[1763129383975,0.10479654,95630.0,95628.0,0.20914162]
[1763129384209,0.10479654,95630.0,95622.0,0.20915688]
[1763129384476,0.10479654,95630.0,95628.0,0.20914309]
[1763129385101,0.10479654,95630.0,95620.0,0.54300756]
[1763129385322,0.10479654,95630.0,95626.0,0.20914666]
[1763129385529,0.10479654,95630.0,95627.0,0.2091452]
[1763129385933,0.10479654,95630.0,95626.0,0.20914725]
[1763129386077,0.10479654,95630.0,95620.0,0.37388056]
[1763129386284,0.10479654,95630.0,95628.0,0.2091427]
[1763129386484,0.11429654,95630.0,95620.0,0.37388056]
[1763129386709,0.11429654,95630.0,95620.0,0.52004091]
[1763129386955,0.11429654,95630.0,95620.0,0.31088056]
[1763129387362,0.11429654,95630.0,95622.0,0.20915626]
[1763129387557,0.11429654,95630.0,95620.0,0.31088056]
[1763129387856,0.11429654,95630.0,95625.0,0.20914965]
[1763129388487,0.10479654,95649.0,95627.0,0.20914595]
[1763129388488,0.10479654,95628.0,95627.0,0.20914595]
[1763129389405,0.10479654,95649.0,95636.0,0.01803]
[1763129389585,0.10479654,95649.0,95636.0,0.39191056]
[1763129389833,0.10479654,95649.0,95637.0,0.20912381]
[1763129390012,0.10479654,95649.0,95636.0,0.39191056]
[1763129390256,0.10479654,95649.0,95644.0,0.20910833]
[1763129390951,0.10479654,95645.0,95644.0,0.20910833]
[1763129391239,0.09173,95674.0,95645.0,0.273453]
[1763129391474,0.0015859,95646.0,95645.0,0.596453]
[1763129391738,0.0015859,95646.0,95637.0,0.323]
[1763129391948,0.10479654,95637.0,95636.0,0.37388056]
[1763129392211,0.10479654,95637.0,95636.0,0.64090843]
[1763129392813,0.10479654,95637.0,95636.0,0.00013543]
[1763129393219,0.0095,95650.0,95636.0,0.00013543]
[1763129393416,0.10479654,95637.0,95636.0,0.00013543]
[1763129393806,0.20904565,95673.0,95635.0,0.07773148]
[1763129393807,0.02791381,95698.0,95697.0,0.20899296]
[1763129394030,0.09314416,95732.0,95728.0,0.20892528]
[1763129394031,0.00272378,95729.0,95728.0,0.20892528]
[1763129394232,0.13065421,95796.0,95728.0,0.20892528]
[1763129394233,0.05634917,95806.0,95748.0,0.20888164]
[1763129394502,0.00045383,95806.0,95790.0,0.00999999]
[1763129394645,0.0095,95800.0,95790.0,0.38388055]
[1763129394846,0.10479654,95795.0,95794.0,0.05495539]
[1763129395057,0.10479654,95780.0,95778.0,0.07329174]
[1763129395258,0.01689332,95780.0,95778.0,0.07669143]
[1763129395461,0.10479654,95795.0,95774.0,0.20882333]
[1763129395874,0.10479654,95795.0,95787.0,0.02748782]
[1763129395875,0.0095,95790.0,95787.0,0.02748782]
[1763129396075,0.0095,95790.0,95787.0,0.02748519]
[1763129396277,0.0095,95790.0,95780.0,0.37388056]
[1763129397102,0.10479654,95789.0,95783.0,0.20880512]
[1763129397305,0.001,95795.0,95792.0,0.20878425]
[1763129397498,0.10479654,95793.0,95790.0,0.20878978]
[1763129397703,0.00045383,95806.0,95794.0,0.712448]
[1763129397903,0.00045383,95806.0,95794.0,0.323]
[1763129398109,0.04965,95840.0,95794.0,0.323]
[1763129398110,0.10479654,95823.0,95810.0,0.37388056]
[1763129398223,0.10479654,95823.0,95811.0,0.20874417]
[1763129398224,0.10493264,95823.0,95811.0,0.20874417]
[1763129398460,0.10493264,95823.0,95821.0,0.20872217]
[1763129398671,0.10493264,95823.0,95818.0,0.20872857]
[1763129398890,0.10493264,95823.0,95821.0,0.20872034]
[1763129399326,0.10493264,95823.0,95814.0,0.20873745]
[1763129399543,0.10593264,95823.0,95822.0,0.20872033]
[1763129399791,0.11075824,95823.0,95817.0,0.20872908]
[1763129399998,0.10593264,95823.0,95817.0,0.28644598]
[1763129400210,0.00468953,95818.0,95813.0,0.37388056]
[1763129400422,0.10479654,95817.0,95813.0,0.37388056]
[1763129400661,0.10479654,95817.0,95785.0,0.31319947]
[1763129400662,0.10479654,95817.0,95770.0,0.02044167]
[1763129400866,0.10479654,95797.0,95790.0,0.37388056]
[1763129401087,0.10479654,95817.0,95790.0,0.0764626]
[1763129401304,0.0001361,95823.0,95822.0,0.36566933]
[1763129401518,0.0001361,95823.0,95814.0,0.323]
[1763129401736,0.0001361,95823.0,95811.0,0.323]
[1763129401950,0.0001361,95823.0,95802.0,0.20876271]
[1763129402164,0.10479654,95819.0,95810.0,0.37388056]
[1763129402393,0.10479654,95803.0,95781.0,0.259184]
[1763129402626,0.10479654,95787.0,95780.0,0.37388056]
[1763129402843,0.10479654,95787.0,95765.0,0.21933497]
[1763129402844,0.10479654,95787.0,95778.0,0.342707]
[1763129403058,0.10479654,95787.0,95750.0,0.01049188]
[1763129403059,0.10479654,95787.0,95770.0,0.37388056]
[1763129403282,0.10479654,95771.0,95770.0,0.37388056]
[1763129403528,0.10479654,95771.0,95760.0,0.37388056]
[1763129403744,0.04822,95761.0,95740.0,0.01044495]
[1763129403960,0.10479654,95754.0,95750.0,0.37388056]
[1763129404184,0.10479654,95754.0,95740.0,0.37388056]
[1763129404396,0.10479654,95754.0,95736.0,0.20890688]
[1763129404397,0.01,95740.0,95730.0,0.37388056]
[1763129404613,0.10528965,95753.0,95720.0,0.01044713]
[1763129404614,0.10479654,95731.0,95720.0,0.37388056]
[1763129404852,0.01,95730.0,95720.0,0.37388056]
[1763129405274,0.01,95730.0,95721.0,0.127945]
[1763129405495,0.01,95730.0,95720.0,0.37388056]
[1763129405496,0.0101359,95730.0,95720.0,0.37388056]
[1763129405712,0.0101359,95730.0,95714.0,0.20895386]
[1763129405934,0.10479654,95715.0,95710.0,0.38432878]
[1763129406582,0.10479654,95715.0,95700.0,0.37388056]
[1763129406791,0.01,95710.0,95700.0,0.37388056]
[1763129407019,0.01,95710.0,95697.0,0.20899199]
[1763129407227,0.10479654,95698.0,95696.0,0.20899499]
[1763129407495,0.01,95700.0,95699.0,0.20898859]
[1763129407708,0.01,95710.0,95702.0,0.2089818]
[1763129407928,0.01,95710.0,95671.0,0.20904762]
[1763129407929,0.10479654,95700.0,95671.0,0.20904762]
[1763129408149,0.10479654,95684.0,95681.0,0.82502491]
[1763129408367,0.10479654,95684.0,95681.0,0.00045383]
[1763129408576,0.10479654,95684.0,95681.0,0.20948142]
[1763129408806,0.10479654,95684.0,95682.0,0.02170472]
[1763129409018,0.10479654,95684.0,95683.0,0.02170472]
[1763129409667,0.10479654,95684.0,95681.0,0.00145383]
[1763129409880,0.10479654,95684.0,95681.0,0.00045383]
[1763129410317,0.10479654,95684.0,95681.0,0.00145383]
[1763129410764,0.10479654,95684.0,95681.0,0.00045383]
[1763129411203,0.04918,95682.0,95681.0,0.00045383]
[1763129412440,0.04918,95682.0,95660.0,0.37388056]
[1763129412642,0.10479654,95666.0,95660.0,0.37401662]
[1763129412845,0.10479654,95666.0,95662.0,0.20906798]
[1763129413046,0.10479654,95666.0,95664.0,0.20906471]
[1763129413250,0.10479654,95666.0,95663.0,0.20906724]
[1763129413463,0.10479654,95665.0,95664.0,0.0209065]
[1763129413668,0.10479654,95665.0,95664.0,0.20906506]
[1763129414070,0.10479654,95665.0,95662.0,0.20906728]
[1763129414586,0.10479654,95665.0,95660.0,0.00013606]
[1763129415085,0.10479654,95665.0,95664.0,0.001]
[1763129415450,0.10479654,95665.0,95651.0,0.05450849]
[1763129415659,0.10479654,95665.0,95620.0,0.05341873]
[1763129415660,0.1049324,95665.0,95661.0,0.20907107]
[1763129415863,0.00013586,95665.0,95663.0,0.20906702]
[1763129416136,0.00013586,95665.0,95664.0,0.0209065]
[1763129416341,0.10479654,95664.0,95655.0,0.42838905]
[1763129416529,0.10479654,95664.0,95656.0,0.5]
[1763129416734,0.10479654,95664.0,95655.0,0.37388056]
[1763129416891,0.10479654,95664.0,95656.0,0.20908254]
[1763129417096,0.00013586,95665.0,95662.0,0.20906729]
[1763129417303,0.10479654,95664.0,95663.0,0.02090672]
[1763129417506,0.10479654,95664.0,95655.0,0.42838905]
[1763129417707,0.10479654,95664.0,95655.0,0.37388056]
[1763129418109,0.10479654,95664.0,95663.0,0.001]
[1763129418510,0.10479654,95664.0,95659.0,0.02090759]
[1763129418675,0.10479654,95664.0,95659.0,0.22998173]
[1763129418901,0.10479654,95664.0,95662.0,0.2090675]
[1763129420187,0.10479654,95664.0,95663.0,0.05450849]
[1763129420402,0.10479654,95664.0,95662.0,0.2090675]
[1763129421016,0.00013586,95665.0,95662.0,0.2090675]
[1763129421224,0.00013586,95665.0,95664.0,0.49230606]
[1763129421447,0.10479654,95684.0,95662.0,0.001]
[1763129421448,0.01,95670.0,95662.0,0.001]
[1763129421648,0.15397654,95663.0,95662.0,0.002]
[1763129421872,0.15397654,95663.0,95662.0,0.0228364]
[1763129422080,0.15397654,95663.0,95662.0,0.0218364]
[1763129422276,0.15444079,95663.0,95662.0,0.0218364]
[1763129422486,0.15444079,95663.0,95654.0,0.03141418]
[1763129422695,0.01,95660.0,95654.0,0.00013586]
[1763129422908,0.06033,95655.0,95654.0,0.00013586]
[1763129425022,0.06133,95655.0,95654.0,0.00013586]
[1763129425258,0.06133,95655.0,95637.0,0.03641168]
[1763129425259,0.10479654,95646.0,95637.0,0.03641168]
[1763129425435,0.04341874,95640.0,95622.0,0.03641168]
[1763129425640,0.04341874,95640.0,95619.0,0.03641168]
[1763129425641,0.01,95620.0,95619.0,0.03641168]
[1763129425849,0.01,95620.0,95617.0,0.03641168]
[1763129426330,0.06033,95618.0,95617.0,0.03641168]
[1763129426529,0.06033,95618.0,95611.0,0.03641168]
[1763129426727,0.06033,95618.0,95612.0,0.03641168]
[1763129427238,0.01,95620.0,95609.0,0.00145075]
[1763129427239,0.06033,95613.0,95609.0,0.00145075]
[1763129427376,0.01,95610.0,95609.0,0.00145075]
[1763129427599,0.07033,95610.0,95609.0,0.00145075]
[1763129428315,0.11951,95610.0,95609.0,0.00190475]
[1763129429634,0.11951,95610.0,95606.0,0.51975075]
[1763129429837,0.10479654,95607.0,95606.0,0.51975075]
[1763129430044,0.10996307,95610.0,95607.0,0.323]
[1763129430045,0.00045307,95610.0,95607.0,0.323]
[1763129430299,0.00045307,95610.0,95609.0,0.323]
[1763129430622,0.00045307,95610.0,95606.0,0.72894045]
[1763129430623,0.01045307,95610.0,95606.0,0.51975075]
[1763129430795,0.16912654,95607.0,95606.0,0.51975075]
[1763129431360,0.16912654,95607.0,95606.0,0.55629731]
[1763129431561,0.16912654,95607.0,95606.0,0.51975075]
[1763129431948,0.16912654,95607.0,95606.0,0.52075075]
[1763129432147,0.16912654,95607.0,95606.0,0.51975075]
[1763129432556,0.16912654,95607.0,95606.0,0.55644998]
[1763129432826,0.16912654,95607.0,95606.0,0.51975075]
[1763129433635,0.17012654,95607.0,95606.0,0.51975075]
[1763129434015,0.16912654,95607.0,95606.0,0.51975075]
[1763129434227,0.17012654,95607.0,95606.0,0.51975075]
[1763129434576,0.16912654,95607.0,95606.0,0.54181998]
[1763129435362,0.16912654,95607.0,95606.0,0.38520014]
[1763129435565,0.16912654,95607.0,95600.0,0.00024601]
[1763129435566,0.1909785,95607.0,95600.0,0.00024601]
[1763129435767,0.09250874,95601.0,95600.0,0.00024601]
[1763129436109,0.04341874,95595.0,95573.0,9e-05]
[1763129436310,0.09793,95584.0,95573.0,9e-05]
[1763129436907,0.01,95580.0,95566.0,1.411408]
[1763129437111,0.09793,95584.0,95566.0,0.726724]
[1763129437112,0.10479654,95567.0,95566.0,0.726724]
[1763129437319,0.10479654,95567.0,95565.0,0.00016]
[1763129437320,0.16146443,95567.0,95565.0,0.00016]
[1763129437522,0.16146443,95567.0,95566.0,0.00092974]
[1763129437523,0.11823831,95567.0,95566.0,0.00092974]
[1763129437730,0.16146443,95567.0,95566.0,0.00092974]
[1763129438147,0.01,95550.0,95540.0,0.62744351]
[1763129438366,0.04894,95541.0,95540.0,0.00053617]
[1763129439798,0.11327,95541.0,95540.0,0.00053617]
[1763129441943,0.15668874,95541.0,95540.0,0.00053617]
[1763129443111,0.04341874,95519.0,95510.0,0.0004]
[1763129443335,0.10479654,95522.0,95490.0,0.05556833]
[1763129443336,0.04751,95511.0,95502.0,0.20941955]
[1763129443544,0.01,95510.0,95507.0,0.20940739]
[1763129443750,0.09067,95523.0,95502.0,0.00013625]
[1763129443986,0.05737974,95522.0,95486.0,0.05516833]
[1763129444196,0.01,95500.0,95491.0,0.188407]
[1763129444410,0.01,95500.0,95496.0,0.20943125]
[1763129444613,0.01,95500.0,95499.0,0.00183376]
[1763129445702,0.06433,95500.0,95499.0,0.00183376]
[1763129445902,0.09067,95508.0,95499.0,0.00183376]
[1763129446127,0.09067,95508.0,95490.0,0.62704351]
[1763129446128,0.11479654,95500.0,95493.0,0.20943746]
[1763129446263,0.11479654,95500.0,95490.0,0.62704351]
[1763129446264,0.10479654,95500.0,95490.0,0.62704351]
[1763129446463,0.10479654,95515.0,95513.0,0.20939404]
[1763129446669,0.10479654,95515.0,95490.0,0.0104723]
[1763129446884,0.10479654,95515.0,95510.0,0.20939996]
[1763129447088,0.10479654,95515.0,95506.0,0.323]
[1763129447089,0.10479654,95515.0,95513.0,0.20939406]
[1763129447471,0.00013577,95522.0,95506.0,0.323]
[1763129447472,0.00013577,95522.0,95509.0,0.53240434]
[1763129447674,0.10479654,95516.0,95512.0,0.83643908]
[1763129447879,0.10479654,95516.0,95512.0,0.62704351]
[1763129448290,0.10479654,95516.0,95513.0,0.20939557]
[1763129448490,0.10479654,95516.0,95514.0,0.02200874]
[1763129448852,0.10479654,95516.0,95514.0,0.20939251]
[1763129449006,0.00013577,95522.0,95521.0,0.20937804]
[1763129449203,0.00013577,95522.0,95521.0,0.8994755]
[1763129449404,0.00013577,95522.0,95521.0,0.34500246]
[1763129449792,0.00013577,95522.0,95521.0,0.71594646]
[1763129450666,0.09067,95581.0,95542.0,0.323]
[1763129450879,0.09067,95581.0,95540.0,0.01046682]
[1763129450880,0.0483306,95567.0,95557.0,0.62704351]
[1763129451085,0.0483306,95567.0,95565.0,0.13128127]
[1763129451541,0.00013617,95567.0,95566.0,1.009281]
[1763129451792,0.00013617,95567.0,95566.0,1.0290317]
[1763129452243,0.00013617,95567.0,95566.0,0.5386167]
[1763129452947,0.04894,95599.0,95583.0,0.323]
[1763129453149,0.04894,95599.0,95590.0,0.323]
[1763129453150,0.04939372,95599.0,95590.0,0.323]
[1763129453384,0.00045372,95599.0,95591.0,0.0220107]
[1763129453593,0.00045372,95599.0,95593.0,0.20921875]
[1763129453797,0.00045372,95599.0,95594.0,0.0220107]
[1763129454018,0.00045372,95599.0,95595.0,0.0220107]
[1763129454244,0.00045372,95599.0,95596.0,0.0220107]
[1763129454453,0.00045372,95599.0,95597.0,0.0220107]
[1763129454654,0.00045372,95599.0,95598.0,0.0220107]
[1763129457226,0.11372372,95599.0,95598.0,0.04960995]
[1763129457429,0.11372372,95599.0,95598.0,0.0220107]
[1763129457636,0.04341874,95598.0,95585.0,0.02759925]
[1763129457837,0.04341874,95598.0,95572.0,0.05507219]
[1763129457838,0.10479654,95586.0,95575.0,0.02759925]
[1763129458061,0.10479654,95586.0,95563.0,0.05507219]
[1763129458062,0.01,95590.0,95589.0,0.20922757]
[1763129458272,0.04939372,95599.0,95589.0,0.02208418]
[1763129458273,0.00045372,95599.0,95589.0,0.02208418]
[1763129458495,0.10479654,95591.0,95590.0,0.02208418]
[1763129458921,0.01,95590.0,95584.0,0.02760785]
[1763129459186,0.01,95590.0,95578.0,0.30568343]
[1763129459673,0.01,95590.0,95574.0,0.128712]
[1763129459876,0.01,95590.0,95573.0,0.20926243]
[1763129460082,0.01,95590.0,95574.0,0.20926026]
[1763129460286,0.01,95590.0,95570.0,0.63750704]
[1763129460287,0.01,95590.0,95571.0,0.218333]
[1763129460535,0.10479654,95591.0,95565.0,0.05507219]
[1763129460536,0.04924,95571.0,95565.0,0.05507219]
[1763129460748,0.10479654,95576.0,95563.0,0.34169283]
[1763129460955,0.10296965,95589.0,95560.0,0.62704351]
[1763129460956,0.10479654,95575.0,95565.0,0.424662]
[1763129461161,0.10479654,95574.0,95571.0,0.20926846]
[1763129461361,0.10479654,95574.0,95572.0,0.20926426]
[1763129462242,0.10479654,95574.0,95564.0,0.62704351]
[1763129462463,0.10479654,95574.0,95570.0,0.20926925]
[1763129462663,0.10479654,95574.0,95572.0,0.20926439]
[1763129462872,0.01,95570.0,95565.0,0.001]
[1763129463283,0.10479654,95574.0,95560.0,0.83633588]
[1763129463470,0.01,95580.0,95572.0,0.20926631]
[1763129463670,0.10479654,95576.0,95573.0,0.20926412]
[1763129463899,0.06284,95573.0,95558.0,0.05507219]
[1763129464100,0.15403654,95559.0,95553.0,0.05507219]
[1763129464304,0.15403654,95559.0,95557.0,0.00038235]
[1763129464305,0.10625874,95558.0,95557.0,0.00038235]
[1763129464526,0.10625874,95558.0,95537.0,0.05507219]
[1763129464678,0.04924,95538.0,95526.0,0.05507219]
[1763129465038,0.10479654,95527.0,95523.0,0.05507219]
[1763129465244,0.10479654,95527.0,95521.0,0.05507219]
[1763129465448,0.01,95520.0,95517.0,0.05507219]
[1763129465634,0.10479654,95527.0,95522.0,0.20937515]
[1763129465867,0.10479654,95527.0,95524.0,0.2093714]
[1763129466048,0.01,95550.0,95531.0,0.00264]
[1763129466249,0.10479654,95559.0,95558.0,0.20929697]
[1763129466483,0.04924,95575.0,95556.0,0.20930027]
[1763129466717,0.10479654,95559.0,95558.0,0.20929505]
[1763129466972,0.01,95570.0,95568.0,0.2092737]
[1763129467219,0.00013609,95575.0,95574.0,0.20926193]
[1763129467487,0.00013609,95575.0,95563.0,0.03687792]
[1763129467488,0.00013609,95575.0,95566.0,0.03687792]
[1763129467748,0.00013609,95575.0,95559.0,0.05771219]
[1763129467749,0.10479654,95572.0,95567.0,0.01948782]
[1763129468060,0.10479654,95572.0,95566.0,0.20927945]
[1763129468199,0.10479654,95572.0,95567.0,0.648526]
[1763129468353,0.10479654,95572.0,95565.0,0.323]
[1763129468354,0.10479654,95572.0,95570.0,0.2461475]
[1763129468560,0.00013609,95575.0,95574.0,0.20926193]
[1763129468768,0.00013609,95575.0,95573.0,0.20926253]
[1763129468971,0.10479654,95574.0,95569.0,0.03687792]
[1763129469223,0.10479654,95574.0,95568.0,0.20927507]
[1763129469378,0.10479654,95574.0,95571.0,0.2092685]
[1763129469567,0.00013609,95575.0,95572.0,0.20926454]
[1763129469756,0.00013609,95575.0,95574.0,0.21026193]
[1763129469961,0.00013609,95575.0,95574.0,0.001]
[1763129470159,0.00013609,95575.0,95572.0,0.20926454]
[1763129470160,0.00013609,95575.0,95570.0,0.03687792]
[1763129470387,0.10479654,95573.0,95569.0,0.03687792]
[1763129470595,0.10479654,95573.0,95569.0,0.01795891]
[1763129470793,0.00013609,95575.0,95572.0,0.20926631]
[1763129471076,0.00013609,95575.0,95573.0,0.23137924]
[1763129471251,0.00013609,95575.0,95574.0,0.02211698]
[1763129471903,0.00013609,95575.0,95574.0,0.90311513]
[1763129472234,0.00013609,95575.0,95574.0,0.49219498]
[1763129472475,0.00013609,95575.0,95574.0,0.34611698]
[1763129472680,0.00013609,95575.0,95574.0,0.05995668]
[1763129472890,0.00013609,95575.0,95574.0,0.02311698]
[1763129473315,0.10553483,95575.0,95574.0,0.02311698]
[1763129473517,0.10553483,95575.0,95574.0,0.001]
[1763129474135,0.04341874,95574.0,95553.0,0.20930637]
[1763129474341,0.10479654,95554.0,95553.0,0.20930637]
[1763129474566,0.10479654,95569.0,95555.0,0.612794]
[1763129474771,0.10479654,95569.0,95562.0,0.20928816]
[1763129474977,0.10479654,95569.0,95563.0,0.20928423]
[1763129475387,0.10479654,95569.0,95562.0,0.20928816]
[1763129475591,0.10479654,95569.0,95560.0,0.20929181]
[1763129475857,0.10479654,95569.0,95559.0,0.0368397]
[1763129475858,0.10479654,95569.0,95559.0,0.5368397]
[1763129476056,0.10479654,95569.0,95561.0,0.157167]
[1763129476266,0.10479654,95569.0,95561.0,0.657167]
[1763129476471,0.10479654,95569.0,95562.0,0.127357]
[1763129476675,0.10479654,95569.0,95563.0,0.5368397]
[1763129476891,0.10479654,95569.0,95562.0,0.0368397]
[1763129477098,0.00013609,95575.0,95565.0,0.5368397]
[1763129477099,0.10479654,95568.0,95565.0,0.5368397]
[1763129477320,0.10479654,95568.0,95564.0,0.0368397]
[1763129477523,0.10479654,95568.0,95559.0,0.62804351]
[1763129477524,0.10479654,95568.0,95567.0,0.0368397]
[1763129477722,0.10479654,95568.0,95563.0,0.05507219]
[1763129478147,0.10479654,95568.0,95562.0,0.55507219]
[1763129478378,0.10479654,95568.0,95565.0,0.05507219]
[1763129479339,0.10818,95566.0,95563.0,0.05507219]
[1763129479540,0.10818,95566.0,95540.0,0.01046682]
[1763129479541,0.04341874,95565.0,95564.0,0.05507219]
[1763129479775,0.35124038,95565.0,95562.0,0.0370708]
[1763129479993,0.04341874,95548.0,95544.0,0.03681701]
[1763129480203,0.2093347,95541.0,95536.0,0.05507219]
[1763129480412,0.2093347,95541.0,95504.0,0.20941315]
[1763129480413,0.04341874,95538.0,95513.0,0.05507219]
[1763129480615,0.10479654,95514.0,95512.0,0.05507219]
[1763129480829,0.10479654,95529.0,95512.0,0.05507219]
[1763129480830,0.01,95520.0,95512.0,0.05507219]
[1763129481042,0.21297654,95513.0,95509.0,0.05507219]
[1763129481250,0.01,95500.0,95497.0,0.05507219]
[1763129481456,0.15099654,95513.0,95497.0,0.00013577]
[1763129481658,0.10479654,95512.0,95503.0,0.62704351]
[1763129481867,0.10479654,95512.0,95509.0,0.20940369]
[1763129482103,0.06198,95510.0,95497.0,0.00013577]
[1763129482315,0.04341874,95509.0,95497.0,0.00013577]
[1763129482520,0.10539874,95498.0,95497.0,0.00113577]
[1763129482723,0.10539874,95498.0,95497.0,0.00013577]
[1763129484001,0.06198,95498.0,95497.0,0.00013577]
[1763129485097,0.06298,95498.0,95497.0,0.00013577]
[1763129485519,0.10639874,95498.0,95497.0,0.00013577]
[1763129485970,0.10739874,95498.0,95497.0,0.00013577]
[1763129486193,0.10639874,95498.0,95497.0,0.00013577]
[1763129486396,0.10539874,95498.0,95497.0,0.00013577]
[1763129486620,0.10539874,95498.0,95497.0,0.00153178]
[1763129486821,0.10639874,95498.0,95497.0,0.00153178]
[1763129487038,0.10739874,95498.0,95497.0,0.00153178]
[1763129487773,0.10739874,95498.0,95470.0,0.0004]
[1763129487774,0.44113861,95498.0,95470.0,0.0004]
[1763129487977,0.13129874,95471.0,95470.0,0.0004]
[1763129488474,0.01,95460.0,95442.0,0.214082]
[1763129488681,0.01,95460.0,95440.0,0.63752129]
[1763129488682,0.01,95460.0,95444.0,0.579977]
[1763129488887,0.11479654,95470.0,95466.0,0.20949834]
[1763129489121,0.10479654,95470.0,95468.0,0.20949295]
[1763129489281,0.01,95480.0,95472.0,0.20948336]
[1763129489477,0.01,95480.0,95455.0,0.00314]
[1763129489478,0.10479654,95478.0,95477.0,0.20947453]
[1763129489687,0.00013592,95478.0,95477.0,0.20947453]
[1763129490515,0.00013592,95478.0,95471.0,0.20948629]
[1763129490904,0.10479654,95474.0,95472.0,0.20948338]
[1763129491088,0.00013592,95478.0,95477.0,0.20947453]
[1763129491497,0.00013592,95478.0,95475.0,0.20947804]
[1763129491498,0.00013592,95478.0,95471.0,0.323]
[1763129491732,0.10479654,95472.0,95461.0,0.249415]
[1763129491906,0.10479654,95472.0,95464.0,0.323]
[1763129492139,0.00013592,95478.0,95466.0,0.239067]
[1763129492356,0.10479654,95475.0,95473.0,0.20948299]
[1763129492534,0.00013592,95478.0,95476.0,0.20947502]
[1763129492754,0.10479654,95477.0,95474.0,0.20947911]
[1763129492969,0.10479654,95477.0,95472.0,0.20948499]
[1763129493153,0.10479654,95477.0,95473.0,0.20948192]
[1763129493369,0.10479654,95477.0,95475.0,0.20947871]
[1763129493517,0.10479654,95477.0,95475.0,0.107906]
[1763129493755,0.10479654,95477.0,95469.0,0.902726]
[1763129493955,0.01,95470.0,95466.0,0.323]
[1763129494155,0.01,95470.0,95461.0,0.323]
[1763129494523,0.00013592,95478.0,95475.0,0.20947774]
[1763129494742,0.00013592,95478.0,95476.0,0.20947565]
[1763129494895,0.10479654,95477.0,95476.0,0.20947565]
[1763129495102,0.00013592,95478.0,95476.0,0.20947565]
[1763129495301,0.10479654,95477.0,95468.0,0.58444004]
[1763129495466,0.01,95470.0,95468.0,0.37494727]
[1763129495669,0.01,95470.0,95463.0,0.916417]
[1763129495884,0.10479654,95477.0,95465.0,0.508849]
[1763129495885,0.04932,95471.0,95465.0,0.508849]
[1763129496094,0.04932,95471.0,95432.0,0.00314]
[1763129496304,0.10479654,95458.0,95451.0,0.921468]
[1763129496534,0.10479654,95458.0,95452.0,0.788988]
[1763129496743,0.10479654,95458.0,95449.0,0.720774]
[1763129496950,0.10479654,95477.0,95451.0,2.0]
[1763129497168,0.01,95470.0,95468.0,0.20949424]
[1763129497362,0.10479654,95477.0,95475.0,0.20947698]
[1763129498560,0.00013592,95478.0,95477.0,0.20947453]
[1763129499867,0.00013592,95478.0,95476.0,0.0005751]
[1763129500064,0.10479654,95477.0,95476.0,0.20947637]
[1763129500496,0.10479654,95477.0,95469.0,0.323]
[1763129500904,0.10479654,95477.0,95469.0,0.20949208]
[1763129501066,0.00013592,95478.0,95476.0,0.20947563]
[1763129501419,0.00013592,95478.0,95477.0,0.00054771]
[1763129501827,0.06420592,95478.0,95477.0,0.00054771]
[1763129501996,0.32351758,95478.0,95477.0,0.00054771]
[1763129502212,0.10762466,95478.0,95477.0,0.00054771]
[1763129502403,0.43062466,95478.0,95477.0,0.00054771]
[1763129502583,0.5354212,95478.0,95477.0,0.00054771]
[1763129502785,0.5354212,95478.0,95450.0,0.37494727]
[1763129502786,0.25289407,95477.0,95451.0,0.712335]
[1763129503143,0.10479654,95460.0,95451.0,0.712335]
[1763129503280,0.11479654,95460.0,95457.0,0.20951645]
[1763129503494,0.11479654,95460.0,95458.0,0.20951514]
[1763129503900,0.10593246,95478.0,95469.0,0.20949188]
[1763129504124,0.10593246,95478.0,95455.0,0.20951609]
[1763129504125,0.01,95470.0,95468.0,0.37494727]
[1763129504291,0.10593246,95478.0,95455.0,0.20951609]
[1763129504292,0.10693246,95478.0,95461.0,1.657633]
[1763129504487,0.10479654,95463.0,95460.0,0.37494727]
[1763129504690,0.10593246,95478.0,95461.0,0.02095096]
[1763129504888,0.00013592,95478.0,95476.0,0.20947539]
[1763129505087,0.00013592,95478.0,95477.0,0.323231]
[1763129505505,0.00013592,95478.0,95476.0,0.20947528]
[1763129505725,0.00013592,95478.0,95477.0,1.055853]
[1763129505929,0.00013592,95478.0,95477.0,1.353684]
[1763129506155,0.00013592,95478.0,95477.0,1.356824]
[1763129506364,0.00013592,95478.0,95477.0,1.45848054]
[1763129507366,0.00013592,95478.0,95477.0,1.5351938]
[1763129507672,0.00013592,95478.0,95477.0,1.5371938]
[1763129508139,0.00013592,95478.0,95477.0,1.43239726]
[1763129508364,0.00013592,95478.0,95477.0,1.5381938]
[1763129508802,0.00013592,95478.0,95477.0,1.61059426]
[1763129509028,0.00145317,95514.0,95480.0,0.01047339]
[1763129509242,0.00158931,95514.0,95512.0,0.20939592]
[1763129509744,0.00158931,95514.0,95513.0,1.094482]
[1763129509946,0.00158931,95514.0,95513.0,1.016482]
[1763129510375,0.00158931,95514.0,95513.0,1.07216653]
[1763129510589,0.00258931,95514.0,95513.0,1.07216653]
[1763129510798,0.00158931,95514.0,95513.0,1.07216653]
[1763129511019,0.00158931,95514.0,95513.0,1.017482]
[1763129511203,0.00258931,95514.0,95513.0,1.020622]
[1763129511455,0.00113614,95514.0,95513.0,1.020622]
[1763129511665,0.00013614,95514.0,95513.0,1.017482]
[1763129511884,0.00013614,95514.0,95513.0,1.09733864]
[1763129512107,0.00013614,95514.0,95513.0,0.001]
[1763129512550,0.00013614,95514.0,95513.0,0.143712]
[1763129512788,0.00013614,95514.0,95513.0,0.144712]
[1763129513010,0.00013614,95514.0,95513.0,0.644712]
[1763129513246,0.00013614,95514.0,95513.0,0.12644]
[1763129513474,0.00013614,95514.0,95513.0,0.94944]
[1763129513701,0.00013614,95514.0,95513.0,0.48658601]
[1763129513913,0.00013614,95514.0,95513.0,0.44944]